[Event "Titled Tuesday Blitz June 6 Late 2023"]
[White "Lopez Perdomo, Juan David"]
[Black "Poltorak, Sebastian"]
[WhiteFideId "4405137"]
[BlackFideId "1199498"]
[WhiteElo "1965"]
[BlackElo "2195"]
[Result "0-1"]
[Round "1"]
[TimeControl "180+2"]
[Date "2023.06.07"]
[WhiteClock "0:00:02"]
[BlackClock "0:00:38"]
[Board "167"]

1. d4 {[%clk 0:03:00]}  Nf6 {[%clk 0:02:59]} 2. c4 {[%clk 0:03:00]}  g6 {[%clk 0:02:59]} 3. Nc3 {[%clk 0:02:59]}  d5 {[%clk 0:02:59]} 4. e3 {[%clk 0:02:59]}  Bg7 {[%clk 0:02:59]} 5. Bd3 {[%clk 0:02:59]}  O-O {[%clk 0:02:58]} 6. Nge2 {[%clk 0:02:58]}  c5 {[%clk 0:02:57]} 7. O-O {[%clk 0:02:54]}  cxd4 {[%clk 0:02:57]} 8. Nxd4 {[%clk 0:02:54]}  e5 {[%clk 0:02:57]} 9. Nb3 {[%clk 0:02:46]}  d4 {[%clk 0:02:50]} 10. exd4 {[%clk 0:02:45]}  exd4 {[%clk 0:02:51]} 11. Ne4 {[%clk 0:02:42]}  Nxe4 {[%clk 0:02:45]} 12. Bxe4 {[%clk 0:02:43]}  Nc6 {[%clk 0:02:45]} 13. Nc5 {[%clk 0:02:09]}  Qe7 {[%clk 0:02:39]} 14. Bxc6 {[%clk 0:01:55]}  Qxc5 {[%clk 0:02:30]} 15. Bd5 {[%clk 0:01:55]}  Be6 {[%clk 0:02:21]} 16. Bxe6 {[%clk 0:01:28]}  fxe6 {[%clk 0:02:22]} 17. Qd3 {[%clk 0:01:25]}  Rac8 {[%clk 0:02:18]} 18. b3 {[%clk 0:01:23]}  Qf5 {[%clk 0:02:13]} 19. Rd1 {[%clk 0:01:12]}  Qxf2+ {[%clk 0:02:12]} 20. Kh1 {[%clk 0:01:11]}  e5 {[%clk 0:01:46]} 21. Ba3 {[%clk 0:01:07]}  Rfe8 {[%clk 0:01:42]} 22. Qe4 {[%clk 0:00:56]}  Rc7 {[%clk 0:01:39]} 23. Rf1 {[%clk 0:00:55]}  Qe3 {[%clk 0:01:37]} 24. Qd5+ {[%clk 0:00:45]}  Kh8 {[%clk 0:01:37]} 25. Rae1 {[%clk 0:00:45]}  Qg5 {[%clk 0:01:25]} 26. Rf7 {[%clk 0:00:37]}  Rxf7 {[%clk 0:01:22]} 27. Qxf7 {[%clk 0:00:38]}  Qd8 {[%clk 0:01:21]} 28. Qxb7 {[%clk 0:00:08]}  d3 {[%clk 0:01:17]} 29. Qe4 {[%clk 0:00:08]}  d2 {[%clk 0:01:05]} 30. Rd1 {[%clk 0:00:09]}  Rf8 {[%clk 0:01:05]} 31. Kg1 {[%clk 0:00:05]}  Rf4 {[%clk 0:01:00]} 32. Qe3 {[%clk 0:00:03]}  Rd4 {[%clk 0:00:40]} 33. Bb4 {[%clk 0:00:04]}  Rd3 {[%clk 0:00:38]} 34. Qe2 {[%clk 0:00:02]}  Qd4+ {[%clk 0:00:38]} 0-1


[Site "https://www.chess.com"]

[Event "Titled Tuesday Blitz June 6 Late 2023"]
[White "Machidon, Cristi"]
[Black "Tarnowska, Aleksandra"]
[WhiteFideId "13904590"]
[BlackFideId "1180967"]
[WhiteElo "2355"]
[BlackElo "1776"]
[Result "1-0"]
[Round "1"]
[TimeControl "180+2"]
[Date "2023.06.07"]
[WhiteClock "0:00:54"]
[BlackClock "0:00:02"]
[Board "168"]

1. e4 {[%clk 0:02:56]}  c5 {[%clk 0:02:59]} 2. Nf3 {[%clk 0:02:55]}  e6 {[%clk 0:02:58]} 3. d4 {[%clk 0:02:55]}  cxd4 {[%clk 0:02:59]} 4. Nxd4 {[%clk 0:02:56]}  a6 {[%clk 0:02:59]} 5. Nc3 {[%clk 0:02:56]}  Qc7 {[%clk 0:02:59]} 6. Qf3 {[%clk 0:02:54]}  Nc6 {[%clk 0:02:57]} 7. Be3 {[%clk 0:02:53]}  Nf6 {[%clk 0:02:46]} 8. Nxc6 {[%clk 0:02:40]}  dxc6 {[%clk 0:02:45]} 9. Qg3 {[%clk 0:02:40]}  Qxg3 {[%clk 0:02:44]} 10. hxg3 {[%clk 0:02:40]}  e5 {[%clk 0:02:32]} 11. f3 {[%clk 0:02:33]}  Bb4 {[%clk 0:02:18]} 12. O-O-O {[%clk 0:02:25]}  Be6 {[%clk 0:02:11]} 13. a3 {[%clk 0:02:19]}  Bxc3 {[%clk 0:01:48]} 14. bxc3 {[%clk 0:02:20]}  Rd8 {[%clk 0:01:31]} 15. Rd3 {[%clk 0:02:05]}  b5 {[%clk 0:01:01]} 16. g4 {[%clk 0:02:00]}  O-O {[%clk 0:00:45]} 17. g5 {[%clk 0:01:34]}  Nd7 {[%clk 0:00:36]} 18. Rd6 {[%clk 0:01:30]}  Nb8 {[%clk 0:00:33]} 19. Bc5 {[%clk 0:01:28]}  Rfe8 {[%clk 0:00:20]} 20. Be2 {[%clk 0:01:21]}  f6 {[%clk 0:00:19]} 21. gxf6 {[%clk 0:01:07]}  gxf6 {[%clk 0:00:20]} 22. g4 {[%clk 0:01:02]}  Rxd6 {[%clk 0:00:19]} 23. Bxd6 {[%clk 0:01:03]}  Rd8 {[%clk 0:00:20]} 24. Be7 {[%clk 0:01:03]}  Rd7 {[%clk 0:00:19]} 25. Bxf6 {[%clk 0:01:04]}  c5 {[%clk 0:00:15]} 26. Bxe5 {[%clk 0:01:02]}  Nc6 {[%clk 0:00:14]} 27. Bf4 {[%clk 0:01:01]}  Rf7 {[%clk 0:00:14]} 28. Be3 {[%clk 0:01:01]}  c4 {[%clk 0:00:13]} 29. Rh6 {[%clk 0:01:00]}  Bd7 {[%clk 0:00:06]} 30. f4 {[%clk 0:00:59]}  Ne7 {[%clk 0:00:02]} 31. f5 {[%clk 0:00:56]}  Kg7 {[%clk 0:00:03]} 32. e5 {[%clk 0:00:54]}  Bc8 {[%clk 0:00:02]} 33. f6+ {[%clk 0:00:54]} 1-0


[Site "https://www.chess.com"]

[Event "Titled Tuesday Blitz June 6 Late 2023"]
[White "Cluke86"]
[Black "Reprintsev, Alexander"]
[BlackFideId "14100541"]
[WhiteElo "2126"]
[BlackElo "2229"]
[Result "1-0"]
[Round "1"]
[TimeControl "180+2"]
[Date "2023.06.07"]
[WhiteClock "0:01:24"]
[BlackClock "0:02:00"]
[Board "171"]

1. e4 {[%clk 0:02:59]}  d5 {[%clk 0:02:57]} 2. exd5 {[%clk 0:02:58]}  Qxd5 {[%clk 0:02:50]} 3. Nc3 {[%clk 0:02:58]}  Qa5 {[%clk 0:02:46]} 4. Bc4 {[%clk 0:02:58]}  Nf6 {[%clk 0:02:45]} 5. d4 {[%clk 0:02:58]}  Bg4 {[%clk 0:02:45]} 6. Nf3 {[%clk 0:02:52]}  Qf5 {[%clk 0:02:43]} 7. h3 {[%clk 0:02:47]}  Bxf3 {[%clk 0:02:42]} 8. Qxf3 {[%clk 0:02:48]}  Qxf3 {[%clk 0:02:42]} 9. gxf3 {[%clk 0:02:49]}  Nc6 {[%clk 0:02:42]} 10. Bb5 {[%clk 0:02:34]}  O-O-O {[%clk 0:02:41]} 11. Bxc6 {[%clk 0:02:33]}  bxc6 {[%clk 0:02:42]} 12. Be3 {[%clk 0:02:29]}  g6 {[%clk 0:02:42]} 13. Ne4 {[%clk 0:02:28]}  Bg7 {[%clk 0:02:40]} 14. O-O-O {[%clk 0:02:25]}  Nh5 {[%clk 0:02:34]} 15. Rhg1 {[%clk 0:02:12]}  f5 {[%clk 0:02:32]} 16. Ng5 {[%clk 0:02:10]}  f4 {[%clk 0:02:32]} 17. Bd2 {[%clk 0:02:03]}  Bxd4 {[%clk 0:02:31]} 18. Nf7 {[%clk 0:01:55]}  Bxf2 {[%clk 0:02:31]} 19. Rg2 {[%clk 0:01:52]}  Bg3 {[%clk 0:02:25]} 20. Nxh8 {[%clk 0:01:49]}  Rxh8 {[%clk 0:02:24]} 21. Bc3 {[%clk 0:01:47]}  Rf8 {[%clk 0:02:22]} 22. Re2 {[%clk 0:01:44]}  Rf7 {[%clk 0:02:19]} 23. Re6 {[%clk 0:01:41]}  Kb7 {[%clk 0:02:17]} 24. Rd7 {[%clk 0:01:39]}  Bf2 {[%clk 0:02:16]} 25. Be5 {[%clk 0:01:36]}  Bb6 {[%clk 0:02:12]} 26. Rexe7 {[%clk 0:01:31]}  Rxe7 {[%clk 0:02:10]} 27. Rxe7 {[%clk 0:01:32]}  Ng3 {[%clk 0:01:59]} 28. Bxf4 {[%clk 0:01:25]}  Ne2+ {[%clk 0:02:00]} 29. Rxe2 {[%clk 0:01:24]} 1-0


[Site "https://www.chess.com"]

[Event "Titled Tuesday Blitz June 6 Late 2023"]
[White "Sargsyan, Anna M."]
[Black "Hartikainen, Jarmo"]
[WhiteFideId "13308130"]
[BlackFideId "503134"]
[WhiteElo "2284"]
[BlackElo "2120"]
[Result "1-0"]
[Round "1"]
[TimeControl "180+2"]
[Date "2023.06.07"]
[WhiteClock "0:02:28"]
[BlackClock "0:00:39"]
[Board "172"]

1. d4 {[%clk 0:03:00]}  Nf6 {[%clk 0:02:58]} 2. c4 {[%clk 0:03:00]}  e6 {[%clk 0:02:58]} 3. Nf3 {[%clk 0:02:59]}  b6 {[%clk 0:02:58]} 4. g3 {[%clk 0:02:56]}  Bb7 {[%clk 0:02:58]} 5. Bg2 {[%clk 0:02:56]}  Bb4+ {[%clk 0:02:53]} 6. Nbd2 {[%clk 0:02:55]}  a5 {[%clk 0:02:48]} 7. O-O {[%clk 0:02:55]}  O-O {[%clk 0:02:47]} 8. Qc2 {[%clk 0:02:56]}  d5 {[%clk 0:02:38]} 9. Ne5 {[%clk 0:02:55]}  Nbd7 {[%clk 0:02:32]} 10. Ndf3 {[%clk 0:02:50]}  dxc4 {[%clk 0:02:20]} 11. Nxd7 {[%clk 0:02:48]}  Nxd7 {[%clk 0:02:13]} 12. Ng5 {[%clk 0:02:45]}  Qxg5 {[%clk 0:01:17]} 13. Bxg5 {[%clk 0:02:43]}  Bxg2 {[%clk 0:01:11]} 14. Kxg2 {[%clk 0:02:44]}  b5 {[%clk 0:01:10]} 15. b3 {[%clk 0:02:43]}  Nb6 {[%clk 0:01:04]} 16. Bd2 {[%clk 0:02:39]}  Bxd2 {[%clk 0:01:00]} 17. Qxd2 {[%clk 0:02:39]}  Rfd8 {[%clk 0:01:00]} 18. e3 {[%clk 0:02:39]}  c5 {[%clk 0:01:00]} 19. bxc4 {[%clk 0:02:34]}  Nxc4 {[%clk 0:00:59]} 20. Qc3 {[%clk 0:02:33]}  cxd4 {[%clk 0:00:59]} 21. exd4 {[%clk 0:02:34]}  Rac8 {[%clk 0:00:57]} 22. Qd3 {[%clk 0:02:32]}  b4 {[%clk 0:00:51]} 23. Rac1 {[%clk 0:02:31]}  Nd6 {[%clk 0:00:46]} 24. Rxc8 {[%clk 0:02:28]}  Rxc8 {[%clk 0:00:46]} 25. Qa6 {[%clk 0:02:29]}  Rd8 {[%clk 0:00:42]} 26. Qxa5 {[%clk 0:02:29]}  Nc4 {[%clk 0:00:39]} 27. Qxd8# {[%clk 0:02:28]} 1-0


[Site "https://www.chess.com"]

[Event "Titled Tuesday Blitz June 6 Late 2023"]
[White "Levine, David"]
[Black "Ozates, Tuna"]
[WhiteFideId "2011611"]
[BlackFideId "6354521"]
[WhiteElo "2102"]
[BlackElo "2151"]
[Result "0-1"]
[Round "1"]
[TimeControl "180+2"]
[Date "2023.06.07"]
[WhiteClock "0:01:26"]
[BlackClock "0:02:09"]
[Board "173"]

1. d4 {[%clk 0:02:58]}  f5 {[%clk 0:02:56]} 2. g3 {[%clk 0:02:57]}  Nf6 {[%clk 0:02:44]} 3. Bg2 {[%clk 0:02:57]}  e6 {[%clk 0:02:44]} 4. c4 {[%clk 0:02:54]}  Be7 {[%clk 0:02:45]} 5. Nf3 {[%clk 0:02:53]}  O-O {[%clk 0:02:45]} 6. O-O {[%clk 0:02:53]}  d6 {[%clk 0:02:42]} 7. Nc3 {[%clk 0:02:51]}  a5 {[%clk 0:02:42]} 8. Re1 {[%clk 0:02:43]}  Qe8 {[%clk 0:02:42]} 9. e4 {[%clk 0:02:40]}  fxe4 {[%clk 0:02:42]} 10. Nxe4 {[%clk 0:02:40]}  Nxe4 {[%clk 0:02:41]} 11. Rxe4 {[%clk 0:02:39]}  Qg6 {[%clk 0:02:41]} 12. Re2 {[%clk 0:02:32]}  Nc6 {[%clk 0:02:39]} 13. Be3 {[%clk 0:02:14]}  e5 {[%clk 0:02:36]} 14. Qd2 {[%clk 0:02:07]}  Bg4 {[%clk 0:02:31]} 15. Ne1 {[%clk 0:01:57]}  Bxe2 {[%clk 0:02:31]} 16. Qxe2 {[%clk 0:01:57]}  exd4 {[%clk 0:02:27]} 17. Bxd4 {[%clk 0:01:50]}  Nxd4 {[%clk 0:02:27]} 18. Qxe7 {[%clk 0:01:50]}  Rae8 {[%clk 0:02:26]} 19. Qxc7 {[%clk 0:01:47]}  Ne2+ {[%clk 0:02:24]} 20. Kf1 {[%clk 0:01:42]}  Qh5 {[%clk 0:02:18]} 21. Qxd6 {[%clk 0:01:32]}  Qxh2 {[%clk 0:02:16]} 22. Qd5+ {[%clk 0:01:31]}  Kh8 {[%clk 0:02:16]} 23. Nf3 {[%clk 0:01:28]}  Qg1+ {[%clk 0:02:09]} 24. Nxg1 {[%clk 0:01:26]}  Nxg3# {[%clk 0:02:09]} 0-1


[Site "https://www.chess.com"]

[Event "Titled Tuesday Blitz June 6 Late 2023"]
[White "MKlose11"]
[Black "Torres Dominguez, David"]
[BlackFideId "2220857"]
[WhiteElo "2544"]
[BlackElo "1999"]
[Result "0-1"]
[Round "1"]
[TimeControl "180+2"]
[Date "2023.06.07"]
[WhiteClock "0:00:04"]
[BlackClock "0:01:15"]
[Board "174"]

1. e4 {[%clk 0:02:55]}  Nc6 {[%clk 0:02:59]} 2. Nf3 {[%clk 0:02:51]}  e5 {[%clk 0:02:58]} 3. d4 {[%clk 0:02:51]}  exd4 {[%clk 0:02:59]} 4. Bc4 {[%clk 0:02:52]}  Bc5 {[%clk 0:02:59]} 5. Ng5 {[%clk 0:02:51]}  Nh6 {[%clk 0:02:59]} 6. Nxf7 {[%clk 0:02:51]}  Nxf7 {[%clk 0:02:57]} 7. Bxf7+ {[%clk 0:02:52]}  Kxf7 {[%clk 0:02:57]} 8. Qh5+ {[%clk 0:02:52]}  g6 {[%clk 0:02:58]} 9. Qxc5 {[%clk 0:02:53]}  d5 {[%clk 0:02:58]} 10. e5 {[%clk 0:02:53]}  Qe7 {[%clk 0:02:53]} 11. Qxd5+ {[%clk 0:02:50]}  Be6 {[%clk 0:02:49]} 12. Qf3+ {[%clk 0:02:48]}  Kg7 {[%clk 0:02:47]} 13. Bf4 {[%clk 0:02:42]}  Rhf8 {[%clk 0:02:46]} 14. Qg3 {[%clk 0:02:37]}  Qb4+ {[%clk 0:02:30]} 15. Nd2 {[%clk 0:02:28]}  Qxb2 {[%clk 0:02:30]} 16. O-O {[%clk 0:02:26]}  Qxc2 {[%clk 0:02:26]} 17. Bg5 {[%clk 0:02:20]}  Qf5 {[%clk 0:02:16]} 18. Bf6+ {[%clk 0:02:19]}  Kg8 {[%clk 0:02:15]} 19. Rab1 {[%clk 0:02:12]}  b6 {[%clk 0:02:05]} 20. Rbc1 {[%clk 0:02:12]}  Bd5 {[%clk 0:02:05]} 21. Nf3 {[%clk 0:02:05]}  Rae8 {[%clk 0:02:02]} 22. Rfe1 {[%clk 0:02:00]}  d3 {[%clk 0:01:59]} 23. Rc3 {[%clk 0:01:48]}  Bxf3 {[%clk 0:01:57]} 24. gxf3 {[%clk 0:01:19]}  Rxf6 {[%clk 0:01:56]} 25. Re3 {[%clk 0:01:07]}  Rfe6 {[%clk 0:01:55]} 26. Rexd3 {[%clk 0:01:04]}  Nxe5 {[%clk 0:01:54]} 27. Rd5 {[%clk 0:00:57]}  Nxf3+ {[%clk 0:01:44]} 28. Qxf3 {[%clk 0:00:56]}  Re1+ {[%clk 0:01:37]} 29. Kg2 {[%clk 0:00:56]}  Qxf3+ {[%clk 0:01:36]} 30. Rxf3 {[%clk 0:00:47]}  R8e7 {[%clk 0:01:36]} 31. Rd8+ {[%clk 0:00:39]}  Kg7 {[%clk 0:01:35]} 32. Rff8 {[%clk 0:00:40]}  R1e2 {[%clk 0:01:33]} 33. Rg8+ {[%clk 0:00:40]}  Kh6 {[%clk 0:01:33]} 34. Rd3 {[%clk 0:00:36]}  R2e5 {[%clk 0:01:29]} 35. Kf1 {[%clk 0:00:24]}  Rf5 {[%clk 0:01:29]} 36. Rh3+ {[%clk 0:00:23]}  Rh5 {[%clk 0:01:28]} 37. Rxh5+ {[%clk 0:00:16]}  Kxh5 {[%clk 0:01:28]} 38. Kg2 {[%clk 0:00:17]}  Kh6 {[%clk 0:01:26]} 39. Kg3 {[%clk 0:00:16]}  Kg5 {[%clk 0:01:26]} 40. h4+ {[%clk 0:00:16]}  Kh6 {[%clk 0:01:26]} 41. Kg4 {[%clk 0:00:15]}  a5 {[%clk 0:01:21]} 42. f4 {[%clk 0:00:15]}  Rf7 {[%clk 0:01:21]} 43. a4 {[%clk 0:00:13]}  Rd7 {[%clk 0:01:20]} 44. Re8 {[%clk 0:00:09]}  Kg7 {[%clk 0:01:19]} 45. Re6 {[%clk 0:00:09]}  Kf7 {[%clk 0:01:18]} 46. Rc6 {[%clk 0:00:09]}  h5+ {[%clk 0:01:16]} 47. Kg5 {[%clk 0:00:09]}  Rd5+ {[%clk 0:01:15]} 48. Kh6 {[%clk 0:00:09]}  Rd6 {[%clk 0:01:15]} 49. Rxc7+ {[%clk 0:00:08]}  Kf6 {[%clk 0:01:15]} 50. Rg7 {[%clk 0:00:01]}  Kf5 {[%clk 0:01:15]} 51. Rg8 {[%clk 0:00:01]}  Kxf4 {[%clk 0:01:13]} 52. Rxg6 {[%clk 0:00:02]}  Rxg6+ {[%clk 0:01:13]} 53. Kxg6 {[%clk 0:00:02]}  Kg4 {[%clk 0:01:13]} 54. Kf6 {[%clk 0:00:03]}  Kxh4 {[%clk 0:01:13]} 55. Ke5 {[%clk 0:00:04]}  Kg3 {[%clk 0:01:14]} 56. Kd4 {[%clk 0:00:04]}  h4 {[%clk 0:01:15]} 0-1


[Site "https://www.chess.com"]

[Event "Titled Tuesday Blitz June 6 Late 2023"]
[White "Risteski, Emil"]
[Black "Eisa Mohmood, Alkhoori"]
[WhiteFideId "15005267"]
[BlackFideId "9316116"]
[WhiteElo "2251"]
[BlackElo "1364"]
[Result "1-0"]
[Round "1"]
[TimeControl "180+2"]
[Date "2023.06.07"]
[WhiteClock "0:02:10"]
[BlackClock "0:00:04"]
[Board "178"]

1. c4 {[%clk 0:03:00]}  Nf6 {[%clk 0:02:59]} 2. Nc3 {[%clk 0:03:01]}  d5 {[%clk 0:03:00]} 3. cxd5 {[%clk 0:03:01]}  Nxd5 {[%clk 0:03:01]} 4. e4 {[%clk 0:03:01]}  Nxc3 {[%clk 0:03:01]} 5. dxc3 {[%clk 0:03:02]}  Qxd1+ {[%clk 0:03:00]} 6. Kxd1 {[%clk 0:03:03]}  e5 {[%clk 0:03:01]} 7. Kc2 {[%clk 0:03:04]}  Bc5 {[%clk 0:03:01]} 8. f3 {[%clk 0:03:03]}  Be6 {[%clk 0:02:57]} 9. b4 {[%clk 0:03:00]}  Bb6 {[%clk 0:02:54]} 10. a4 {[%clk 0:03:00]}  a6 {[%clk 0:02:54]} 11. Ne2 {[%clk 0:02:45]}  O-O {[%clk 0:02:41]} 12. Ng3 {[%clk 0:02:43]}  Nc6 {[%clk 0:02:37]} 13. a5 {[%clk 0:02:40]}  Bf2 {[%clk 0:02:30]} 14. Bd3 {[%clk 0:02:33]}  Rfd8 {[%clk 0:02:27]} 15. Bb2 {[%clk 0:02:32]}  Bb3+ {[%clk 0:02:24]} 16. Kxb3 {[%clk 0:02:31]}  Rxd3 {[%clk 0:02:24]} 17. Kc2 {[%clk 0:02:31]}  Rad8 {[%clk 0:02:24]} 18. Rad1 {[%clk 0:02:31]}  Rxd1 {[%clk 0:02:17]} 19. Rxd1 {[%clk 0:02:31]}  Rxd1 {[%clk 0:02:17]} 20. Kxd1 {[%clk 0:02:32]}  Bxg3 {[%clk 0:02:11]} 21. hxg3 {[%clk 0:02:32]}  f6 {[%clk 0:02:05]} 22. Bc1 {[%clk 0:02:32]}  Kf7 {[%clk 0:02:05]} 23. Be3 {[%clk 0:02:32]}  Ke6 {[%clk 0:02:05]} 24. Kc2 {[%clk 0:02:32]}  f5 {[%clk 0:02:04]} 25. exf5+ {[%clk 0:02:32]}  Kxf5 {[%clk 0:02:04]} 26. g4+ {[%clk 0:02:33]}  Ke6 {[%clk 0:02:04]} 27. Kd3 {[%clk 0:02:33]}  Ne7 {[%clk 0:01:58]} 28. c4 {[%clk 0:02:33]}  Nc6 {[%clk 0:01:53]} 29. Bd2 {[%clk 0:02:28]}  Nd4 {[%clk 0:01:52]} 30. Bc3 {[%clk 0:02:27]}  Nc6 {[%clk 0:01:48]} 31. b5 {[%clk 0:02:24]}  Na7 {[%clk 0:01:24]} 32. bxa6 {[%clk 0:02:24]}  bxa6 {[%clk 0:01:24]} 33. Ke4 {[%clk 0:02:25]}  c5 {[%clk 0:01:19]} 34. Bxe5 {[%clk 0:02:23]}  Nc6 {[%clk 0:01:19]} 35. Bc3 {[%clk 0:02:22]}  g6 {[%clk 0:01:18]} 36. f4 {[%clk 0:02:20]}  Kd6 {[%clk 0:01:02]} 37. f5 {[%clk 0:02:19]}  gxf5+ {[%clk 0:01:01]} 38. gxf5 {[%clk 0:02:20]}  h6 {[%clk 0:00:40]} 39. g4 {[%clk 0:02:17]}  Nd8 {[%clk 0:00:23]} 40. Bd2 {[%clk 0:02:10]}  Nf7 {[%clk 0:00:17]} 41. Bf4+ {[%clk 0:02:10]}  Kc6 {[%clk 0:00:18]} 42. f6 {[%clk 0:02:10]}  Kd7 {[%clk 0:00:17]} 43. Kf5 {[%clk 0:02:10]}  Nd8 {[%clk 0:00:12]} 44. Bxh6 {[%clk 0:02:10]}  Ne6 {[%clk 0:00:11]} 45. Be3 {[%clk 0:02:10]}  Kd6 {[%clk 0:00:09]} 46. g5 {[%clk 0:02:10]}  Kd7 {[%clk 0:00:05]} 47. g6 {[%clk 0:02:10]}  Kd6 {[%clk 0:00:05]} 48. g7 {[%clk 0:02:10]}  Kd7 {[%clk 0:00:04]} 49. g8=Q {[%clk 0:02:10]} 1-0


[Site "https://www.chess.com"]

[Event "Titled Tuesday Blitz June 6 Late 2023"]
[White "Dmitriev, Sergey"]
[Black "Vovk, Orest"]
[WhiteFideId "14101785"]
[BlackFideId "14113490"]
[WhiteElo "2132"]
[BlackElo "2215"]
[Result "0-1"]
[Round "1"]
[TimeControl "180+2"]
[Date "2023.06.07"]
[WhiteClock "0:01:40"]
[BlackClock "0:01:22"]
[Board "179"]

1. d4 {[%clk 0:03:00]}  h6 {[%clk 0:02:59]} 2. Nf3 {[%clk 0:03:00]}  g5 {[%clk 0:02:58]} 3. e4 {[%clk 0:02:56]}  Bg7 {[%clk 0:02:58]} 4. Bc4 {[%clk 0:02:54]}  c5 {[%clk 0:02:54]} 5. d5 {[%clk 0:02:51]}  d6 {[%clk 0:02:54]} 6. c3 {[%clk 0:02:51]}  Nd7 {[%clk 0:02:51]} 7. O-O {[%clk 0:02:50]}  Ne5 {[%clk 0:02:50]} 8. Nxe5 {[%clk 0:02:48]}  Bxe5 {[%clk 0:02:49]} 9. f4 {[%clk 0:02:47]}  gxf4 {[%clk 0:02:47]} 10. Bxf4 {[%clk 0:02:48]}  Bxf4 {[%clk 0:02:46]} 11. Rxf4 {[%clk 0:02:47]}  Nf6 {[%clk 0:02:47]} 12. Nd2 {[%clk 0:02:41]}  Bd7 {[%clk 0:02:42]} 13. Qe2 {[%clk 0:02:41]}  Qb6 {[%clk 0:02:35]} 14. b3 {[%clk 0:02:39]}  O-O-O {[%clk 0:02:34]} 15. Rb1 {[%clk 0:02:30]}  Rhg8 {[%clk 0:02:32]} 16. g3 {[%clk 0:02:28]}  h5 {[%clk 0:02:22]} 17. Kh1 {[%clk 0:02:27]}  Bg4 {[%clk 0:02:20]} 18. Qe3 {[%clk 0:02:24]}  h4 {[%clk 0:02:15]} 19. Rg1 {[%clk 0:02:22]}  hxg3 {[%clk 0:02:09]} 20. Rxg3 {[%clk 0:02:21]}  Bd7 {[%clk 0:02:06]} 21. Rxg8 {[%clk 0:02:18]}  Rxg8 {[%clk 0:02:06]} 22. e5 {[%clk 0:02:16]}  Ng4 {[%clk 0:02:04]} 23. Qe2 {[%clk 0:02:09]}  Nxe5 {[%clk 0:01:59]} 24. Nf3 {[%clk 0:01:54]}  Bg4 {[%clk 0:01:43]} 25. Qe3 {[%clk 0:01:47]}  Bxf3+ {[%clk 0:01:37]} 26. Rxf3 {[%clk 0:01:48]}  Nxf3 {[%clk 0:01:37]} 27. Qxf3 {[%clk 0:01:48]}  f6 {[%clk 0:01:32]} 28. Qe3 {[%clk 0:01:44]}  Qd8 {[%clk 0:01:31]} 29. Qe6+ {[%clk 0:01:43]}  Kb8 {[%clk 0:01:30]} 30. Bb5 {[%clk 0:01:41]}  Qf8 {[%clk 0:01:28]} 31. Qd7 {[%clk 0:01:40]}  Qg7 {[%clk 0:01:22]} 0-1


[Site "https://www.chess.com"]

[Event "Titled Tuesday Blitz June 6 Late 2023"]
[White "Semenova, Alina"]
[Black "SergioMoralesG"]
[WhiteFideId "24113875"]
[WhiteElo "1833"]
[BlackElo "2533"]
[Result "1-0"]
[Round "1"]
[TimeControl "180+2"]
[Date "2023.06.07"]
[WhiteClock "0:00:12"]
[BlackClock "0:00:01"]
[Board "181"]

1. e4 {[%clk 0:02:59]}  c5 {[%clk 0:02:43]} 2. Nf3 {[%clk 0:02:58]}  d6 {[%clk 0:02:42]} 3. d4 {[%clk 0:02:58]}  cxd4 {[%clk 0:02:43]} 4. Nxd4 {[%clk 0:02:59]}  Nf6 {[%clk 0:02:43]} 5. Nc3 {[%clk 0:02:59]}  a6 {[%clk 0:02:43]} 6. f3 {[%clk 0:02:58]}  e5 {[%clk 0:02:41]} 7. Nb3 {[%clk 0:02:58]}  Be6 {[%clk 0:02:42]} 8. Be3 {[%clk 0:02:58]}  d5 {[%clk 0:02:41]} 9. exd5 {[%clk 0:02:56]}  Nxd5 {[%clk 0:02:40]} 10. Nxd5 {[%clk 0:02:52]}  Qxd5 {[%clk 0:02:40]} 11. Qxd5 {[%clk 0:02:49]}  Bxd5 {[%clk 0:02:41]} 12. O-O-O {[%clk 0:02:50]}  Bxb3 {[%clk 0:02:27]} 13. cxb3 {[%clk 0:02:50]}  Nc6 {[%clk 0:02:25]} 14. Bd3 {[%clk 0:02:47]}  Be7 {[%clk 0:02:21]} 15. Be4 {[%clk 0:02:47]}  Rc8 {[%clk 0:02:21]} 16. Kb1 {[%clk 0:02:46]}  O-O {[%clk 0:02:20]} 17. g4 {[%clk 0:02:45]}  Rfd8 {[%clk 0:02:16]} 18. Bb6 {[%clk 0:02:42]}  Rxd1+ {[%clk 0:01:52]} 19. Rxd1 {[%clk 0:02:43]}  Nd4 {[%clk 0:01:17]} 20. Bxb7 {[%clk 0:02:11]}  Rb8 {[%clk 0:01:12]} 21. Bxd4 {[%clk 0:02:10]}  exd4 {[%clk 0:01:10]} 22. Bxa6 {[%clk 0:02:09]}  Bf6 {[%clk 0:00:55]} 23. Bc4 {[%clk 0:02:00]}  Kf8 {[%clk 0:00:49]} 24. a4 {[%clk 0:01:59]}  Ke7 {[%clk 0:00:46]} 25. a5 {[%clk 0:01:59]}  Kd6 {[%clk 0:00:33]} 26. Bxf7 {[%clk 0:01:53]}  Kc5 {[%clk 0:00:29]} 27. Bc4 {[%clk 0:01:49]}  h6 {[%clk 0:00:23]} 28. Kc2 {[%clk 0:01:45]}  Re8 {[%clk 0:00:21]} 29. a6 {[%clk 0:01:42]}  Kb6 {[%clk 0:00:21]} 30. Ra1 {[%clk 0:01:24]}  Ka7 {[%clk 0:00:21]} 31. Ra5 {[%clk 0:01:19]}  Re3 {[%clk 0:00:20]} 32. Rf5 {[%clk 0:00:58]}  Re1 {[%clk 0:00:19]} 33. Kd3 {[%clk 0:00:49]}  Re3+ {[%clk 0:00:18]} 34. Kd2 {[%clk 0:00:47]}  Bg5 {[%clk 0:00:16]} 35. Kc2 {[%clk 0:00:46]}  Bf6 {[%clk 0:00:15]} 36. b4 {[%clk 0:00:39]}  Re1 {[%clk 0:00:13]} 37. b5 {[%clk 0:00:34]}  Rh1 {[%clk 0:00:13]} 38. Rd5 {[%clk 0:00:21]}  Rxh2+ {[%clk 0:00:12]} 39. Kb3 {[%clk 0:00:20]}  Rf2 {[%clk 0:00:10]} 40. Rd7+ {[%clk 0:00:16]}  Kb6 {[%clk 0:00:05]} 41. a7 {[%clk 0:00:15]}  Rxf3+ {[%clk 0:00:03]} 42. Ka4 {[%clk 0:00:14]}  d3 {[%clk 0:00:01]} 43. a8=Q {[%clk 0:00:12]} 1-0


[Site "https://www.chess.com"]

[Event "Titled Tuesday Blitz June 6 Late 2023"]
[White "Vargas, Mauricio"]
[Black "WindWhistler11"]
[WhiteFideId "4404572"]
[WhiteElo "1986"]
[BlackElo "2533"]
[Result "0-1"]
[Round "1"]
[TimeControl "180+2"]
[Date "2023.06.07"]
[WhiteClock "0:00:05"]
[BlackClock "0:01:25"]
[Board "183"]

1. e4 {[%clk 0:02:53]}  d6 {[%clk 0:02:58]} 2. f4 {[%clk 0:02:53]}  Nd7 {[%clk 0:02:56]} 3. Nf3 {[%clk 0:02:53]}  g6 {[%clk 0:02:56]} 4. Nc3 {[%clk 0:02:49]}  Bg7 {[%clk 0:02:56]} 5. Bc4 {[%clk 0:02:49]}  e6 {[%clk 0:02:51]} 6. O-O {[%clk 0:02:47]}  a6 {[%clk 0:02:51]} 7. a4 {[%clk 0:02:47]}  Ne7 {[%clk 0:02:45]} 8. d3 {[%clk 0:02:46]}  c6 {[%clk 0:02:39]} 9. d4 {[%clk 0:02:32]}  d5 {[%clk 0:02:38]} 10. Be2 {[%clk 0:02:29]}  O-O {[%clk 0:02:35]} 11. Qe1 {[%clk 0:02:11]}  c5 {[%clk 0:02:27]} 12. dxc5 {[%clk 0:02:08]}  Nxc5 {[%clk 0:02:26]} 13. Be3 {[%clk 0:01:50]}  Nxe4 {[%clk 0:02:06]} 14. Nxe4 {[%clk 0:01:46]}  dxe4 {[%clk 0:02:07]} 15. Rd1 {[%clk 0:01:45]}  Qc7 {[%clk 0:02:05]} 16. c3 {[%clk 0:01:37]}  exf3 {[%clk 0:02:01]} 17. Bxf3 {[%clk 0:01:37]}  Bd7 {[%clk 0:02:01]} 18. a5 {[%clk 0:01:35]}  Nf5 {[%clk 0:01:59]} 19. Bb6 {[%clk 0:01:33]}  Qc8 {[%clk 0:01:59]} 20. g4 {[%clk 0:01:26]}  Ne7 {[%clk 0:01:58]} 21. Qh4 {[%clk 0:01:14]}  Nd5 {[%clk 0:01:57]} 22. Bxd5 {[%clk 0:00:56]}  exd5 {[%clk 0:01:55]} 23. Rxd5 {[%clk 0:00:56]}  Bxg4 {[%clk 0:01:50]} 24. Rc5 {[%clk 0:00:47]}  Qd7 {[%clk 0:01:45]} 25. Rc7 {[%clk 0:00:46]}  Qe6 {[%clk 0:01:42]} 26. Re1 {[%clk 0:00:46]}  Qf5 {[%clk 0:01:40]} 27. Rf1 {[%clk 0:00:10]}  Bf6 {[%clk 0:01:27]} 28. Qg3 {[%clk 0:00:05]}  Rae8 {[%clk 0:01:25]} 0-1


[Site "https://www.chess.com"]